bitfinex-derivatives/quotes_BTCF0:USTF0_20250724
["timestamp","ask_amount","ask_price","bid_price","bid_amount"]
[1753354902016,5.918,118500.0,118490.0,1.08375709]
[1753354903312,6.12956697,118500.0,118490.0,1.01329527]
[1753354903813,6.12956697,118500.0,118490.0,0.97402527]
[1753354904718,6.12956697,118500.0,118490.0,0.7624583]
[1753354904924,5.918,118500.0,118490.0,0.97402527]
[1753354905122,6.12956697,118500.0,118490.0,0.97402527]
[1753354906312,5.918,118500.0,118490.0,0.97402527]
[1753354906618,6.12956697,118500.0,118490.0,0.97402527]
[1753354907017,5.918,118500.0,118490.0,0.97402527]
[1753354907212,6.12956697,118500.0,118490.0,0.97402527]
[1753354907518,6.12956697,118500.0,118490.0,1.03468399]
[1753354908419,6.12956697,118500.0,118490.0,0.97402527]
[1753354909518,6.12956697,118500.0,118490.0,0.7624583]
[1753354909820,6.12956697,118500.0,118490.0,0.97402527]
[1753354910421,6.12956697,118500.0,118490.0,1.03468399]
[1753354910726,5.918,118500.0,118490.0,1.03468399]
[1753354911021,6.12956697,118500.0,118490.0,1.03468399]
[1753354912222,5.918,118500.0,118490.0,1.03468399]
[1753354912423,6.12956697,118500.0,118490.0,1.03468399]
[1753354913122,6.12956697,118500.0,118490.0,0.97402527]
[1753354916117,6.12956697,118500.0,118490.0,0.7624583]
[1753354916411,6.12956697,118500.0,118490.0,0.97402527]
[1753354916617,6.29825087,118500.0,118490.0,0.97402527]
[1753354916827,6.12956697,118500.0,118490.0,0.97402527]
[1753354917218,6.12956697,118500.0,118490.0,0.7624583]
[1753354917418,6.12956697,118500.0,118490.0,0.97402527]
[1753354917830,6.12956697,118500.0,118490.0,1.03468399]
[1753354919130,6.12956697,118500.0,118490.0,0.96942399]
[1753354919430,0.1686982,118490.0,118480.0,0.29863065]
[1753354919628,1.65802517,118490.0,118480.0,0.29863065]
[1753354920332,1.65802517,118490.0,118480.0,0.3290217]
[1753354921429,1.65802517,118490.0,118480.0,0.28344305]
[1753354926131,1.65802517,118490.0,118480.0,0.253052]
[1753354926524,1.29722517,118490.0,118480.0,0.253052]
[1753354926731,1.29722517,118490.0,118480.0,0.314472]
[1753354926927,1.65802517,118490.0,118480.0,0.314472]
[1753354927132,1.29722517,118490.0,118480.0,0.38991305]
[1753354927336,1.29722517,118490.0,118480.0,0.359522]
[1753354927520,1.65802517,118490.0,118480.0,0.38991305]
[1753354927725,1.29722517,118490.0,118480.0,0.359522]
[1753354927928,1.48932697,118490.0,118480.0,0.359522]
[1753354928930,1.65802507,118490.0,118480.0,0.359522]
[1753354929833,1.4464581,118490.0,118480.0,0.359522]
[1753354930134,1.65802507,118490.0,118480.0,0.359522]
[1753354930435,1.65802507,118490.0,118480.0,0.57108897]
[1753354931033,1.48932697,118490.0,118480.0,0.57108897]
[1753354931237,1.48932697,118490.0,118480.0,0.359522]
[1753354931734,1.27776,118490.0,118480.0,0.359522]
[1753354932136,1.48932697,118490.0,118480.0,0.359522]
[1753354932634,1.65802517,118490.0,118480.0,0.359522]
[1753354933335,1.48932697,118490.0,118480.0,0.359522]
[1753354933829,1.12852697,118490.0,118480.0,0.359522]
[1753354934034,1.48932697,118490.0,118480.0,0.359522]
[1753354934632,1.12852697,118490.0,118480.0,0.359522]
[1753354934835,1.12852697,118490.0,118480.0,0.57108897]
[1753354935035,1.48932697,118490.0,118480.0,0.57108897]
[1753354935234,1.65802517,118490.0,118480.0,0.57108897]
[1753354936238,1.65802517,118490.0,118480.0,0.359522]
[1753354936733,1.65802517,118490.0,118480.0,0.410612]
[1753354937436,1.65802517,118490.0,118480.0,0.62217897]
[1753354937828,1.27748,118490.0,118480.0,0.62217897]
[1753354938027,1.48904697,118490.0,118480.0,0.410612]
[1753354938237,1.48904697,118490.0,118480.0,0.62217897]
[1753354938737,1.48904697,118490.0,118480.0,0.410612]
[1753354938938,1.48904697,118490.0,118480.0,0.62217897]
[1753354940425,0.6908,118490.0,118480.0,0.62217897]
[1753354940737,0.9166,118490.0,118480.0,1.34544459]
[1753354941831,0.6566,118490.0,118480.0,1.51143291]
[1753354942237,0.6337046,118490.0,118480.0,1.55686035]
[1753354943038,0.6337046,118490.0,118480.0,1.34529338]
[1753354943733,0.6337046,118490.0,118480.0,1.55686035]
[1753354943926,0.6337046,118490.0,118480.0,1.34529338]
[1753354945134,0.6337046,118490.0,118480.0,1.20421441]
[1753354946043,0.07,118490.0,118480.0,1.20421441]
[1753354947642,0.07,118490.0,118480.0,1.48626938]
[1753354949741,0.07,118490.0,118480.0,1.20421441]
[1753354950735,5.58648,118500.0,118490.0,0.2755287]
[1753354950935,5.92648,118500.0,118490.0,1.07554367]
[1753354952041,5.34,118500.0,118490.0,1.07554367]
[1753354952232,5.92632,118500.0,118490.0,1.12097111]
[1753354952434,5.92632,118500.0,118490.0,1.12094026]
[1753354952638,5.92632,118500.0,118490.0,1.07554367]
[1753354954349,5.34,118500.0,118490.0,1.66186367]
[1753354955750,5.34,118500.0,118490.0,1.72252239]
[1753354960448,5.2839218,118500.0,118490.0,1.72252239]
[1753354961246,4.9403808,118500.0,118490.0,1.72252239]
[1753354961454,4.7865603,118500.0,118490.0,1.72252239]
[1753354961750,3.71919016,118500.0,118490.0,1.60925142]
[1753354962053,3.51389796,118500.0,118490.0,1.83064767]
[1753354962254,3.42131146,118500.0,118490.0,1.83064767]
[1753354963454,3.42131146,118500.0,118490.0,1.24432767]
[1753354963753,3.42131146,118500.0,118490.0,1.83048767]
[1753354964647,3.42131146,118500.0,118490.0,1.66170367]
[1753354964857,3.42131146,118500.0,118490.0,1.07554367]
[1753354965059,3.42131146,118500.0,118490.0,1.66170367]
[1753354965756,3.42131146,118500.0,118490.0,1.66166367]
[1753354965952,3.75131146,118500.0,118490.0,0.7934887]
[1753354966161,3.75131146,118500.0,118490.0,1.66166367]
[1753354966662,4.33743146,118500.0,118490.0,1.66166367]
[1753354966863,4.33743146,118500.0,118490.0,1.07554367]
[1753354967263,4.34316386,118500.0,118490.0,0.6866587]
[1753354967566,4.92924386,118500.0,118490.0,0.57489271]
[1753354967864,5.29004386,118500.0,118490.0,0.21409271]
[1753354968066,5.29004386,118500.0,118490.0,0.1686987]
[1753354968553,5.07846036,118500.0,118490.0,0.3802822]
[1753354968965,5.07846036,118500.0,118490.0,0.42567621]
[1753354969966,5.07846036,118500.0,118490.0,0.48472621]
[1753354970362,4.54897496,118500.0,118490.0,0.53334621]
[1753354970565,4.54897496,118500.0,118490.0,0.58283621]
[1753354971265,4.33739146,118500.0,118490.0,0.37125271]
[1753354971566,4.33739146,118500.0,118490.0,0.65336106]
[1753354972664,4.33739146,118500.0,118490.0,0.37125271]
[1753354973670,4.33739146,118500.0,118490.0,0.65336106]
[1753354973964,4.33739146,118500.0,118490.0,0.37125271]
[1753354974165,3.75131146,118500.0,118490.0,0.76019106]
[1753354974366,4.33739146,118500.0,118490.0,1.12099106]
[1753354975571,4.33739146,118500.0,118490.0,1.1210032]
[1753354975864,4.33739146,118500.0,118490.0,1.07559705]
[1753354976067,3.75131146,118500.0,118490.0,1.12100307]
[1753354976270,4.33735146,118500.0,118490.0,1.12100307]
[1753354976569,4.33735146,118500.0,118490.0,1.12099248]
[1753354976769,4.33735146,118500.0,118490.0,1.12098989]
[1753354977867,4.33735146,118500.0,118490.0,1.07559705]
[1753354980168,3.57131146,118500.0,118490.0,1.66163705]
[1753354980475,3.36705046,118500.0,118490.0,1.66163705]
[1753354980772,3.27356616,118500.0,118490.0,1.66163705]
[1753354980971,3.27356616,118500.0,118490.0,1.72229577]
[1753354982174,3.27356616,118500.0,118490.0,1.66163705]
[1753354987379,3.18227266,118500.0,118490.0,1.66163705]
[1753354987573,3.11237866,118500.0,118490.0,1.66163705]
[1753354987774,2.84509916,118500.0,118490.0,1.66163705]
[1753354987974,2.65794156,118500.0,118490.0,1.66163705]
[1753354988274,2.50127806,118500.0,118490.0,1.66163705]
[1753354988475,2.38763816,118500.0,118490.0,1.66163705]
[1753354988675,2.32104326,118500.0,118490.0,1.66163705]
[1753354988876,2.24849366,118500.0,118490.0,1.66163705]
[1753354989076,2.15793946,118500.0,118490.0,1.66163705]
[1753354989277,1.99574986,118500.0,118490.0,1.66163705]
[1753354989477,1.94444776,118500.0,118490.0,1.66163705]
[1753354989782,1.84660646,118500.0,118490.0,1.66163705]
[1753354989982,1.80247826,118500.0,118490.0,1.66163705]
[1753354990183,1.70037746,118500.0,118490.0,1.66163705]
[1753354990380,1.59032856,118500.0,118490.0,1.66163705]
[1753354990585,1.54028766,118500.0,118490.0,1.66163705]
[1753354990885,1.51579786,118500.0,118490.0,1.66163705]
[1753354991285,1.45824286,118500.0,118490.0,1.66163705]
[1753354991481,1.34158906,118500.0,118490.0,1.72229577]
[1753354991678,1.29995336,118500.0,118490.0,1.72229577]
[1753354991875,1.25885586,118500.0,118490.0,1.72229577]
[1753354992074,1.23162586,118500.0,118490.0,1.72229577]
[1753354992278,1.17214306,118500.0,118490.0,1.66163705]
[1753354992483,1.10614766,118500.0,118490.0,1.66163705]
[1753354992685,1.07779326,118500.0,118490.0,1.66163705]
[1753354993085,1.03052696,118500.0,118490.0,1.66163705]
[1753354993285,0.97695826,118500.0,118490.0,1.66163705]
[1753354993482,0.22981804,118500.0,118490.0,1.98195705]
[1753354993682,0.15927894,118500.0,118490.0,2.05785606]
[1753354993880,0.12065764,118500.0,118490.0,2.05785606]
[1753354994076,0.09691794,118500.0,118490.0,2.05785606]
[1753354994281,0.02968924,118500.0,118490.0,2.05785606]
[1753354994481,4e-08,118500.0,118490.0,1.73769606]
[1753354994682,4e-08,118500.0,118490.0,2.06769606]
[1753354994888,4e-08,118500.0,118490.0,2.06869606]
[1753354995286,4e-08,118500.0,118490.0,1.73869606]
[1753354995487,4e-08,118500.0,118490.0,2.09869606]
[1753354995681,4e-08,118500.0,118490.0,1.73869606]
[1753354999786,4e-08,118500.0,118490.0,2.11869606]
[1753355001693,0.02006,118530.0,118520.0,0.4589978]
[1753355001893,0.39006,118530.0,118520.0,1.4293399]
[1753355002294,0.39006,118530.0,118520.0,0.8651232]
[1753355002782,0.39006,118530.0,118520.0,1.14723155]
[1753355002987,0.1926833,118530.0,118520.0,1.44444837]
[1753355003188,0.64675,118550.0,118540.0,0.3397693]
[1753355003486,0.91675,118550.0,118540.0,0.73076313]
[1753355003790,0.91675,118550.0,118540.0,1.01287148]
[1753355003987,1.085365,118550.0,118540.0,0.36996313]
[1753355004590,1.72827335,118550.0,118540.0,0.31090313]
[1753355004894,1.72827335,118550.0,118540.0,0.19882313]
[1753355005496,1.72927335,118550.0,118540.0,0.19882313]
[1753355005795,1.51511196,118550.0,118540.0,0.19882303]
[1753355005993,1.79722031,118550.0,118540.0,0.19882303]
[1753355006288,1.43642031,118550.0,118540.0,0.19882303]
[1753355006490,1.79722031,118550.0,118540.0,0.19882303]
[1753355006687,1.43642031,118550.0,118540.0,0.24564303]
[1753355006887,1.43642031,118550.0,118540.0,0.37474378]
[1753355007288,1.79722031,118550.0,118540.0,0.37474378]
[1753355007488,1.51511196,118550.0,118540.0,0.32945303]
[1753355007694,1.43642031,118550.0,118540.0,0.32945303]
[1753355007896,1.79722031,118550.0,118540.0,0.32945303]
[1753355008088,1.43642031,118550.0,118540.0,0.37474378]
[1753355008289,1.43642031,118550.0,118540.0,0.40304303]
[1753355008495,1.091165,118550.0,118540.0,0.86866213]
[1753355010291,1.091165,118550.0,118540.0,0.04529075]
[1753355010489,1.091165,118550.0,118520.0,0.82112215]
[1753355010490,0.1686433,118530.0,118520.0,0.82112215]
[1753355010691,1.1429633,118530.0,118520.0,0.82112215]
[1753355010894,1.42507165,118530.0,118520.0,0.82112215]
[1753355011095,1.1429633,118530.0,118520.0,0.82112215]
[1753355011403,0.1686291,118540.0,118530.0,0.10586]
[1753355011695,0.1686291,118540.0,118530.0,1.02336165]
[1753355011696,0.36,118540.0,118530.0,1.02336165]
[1753355011894,0.36,118540.0,118530.0,1.1992824]
[1753355012290,0.36,118540.0,118530.0,1.15399165]
[1753355012488,0.36,118540.0,118530.0,1.1992824]
[1753355012689,0.361,118540.0,118530.0,1.1992824]
[1753355013684,0.361,118540.0,118530.0,0.91717405]
[1753355014195,0.361,118540.0,118530.0,1.1992824]
[1753355018698,0.361,118540.0,118530.0,0.91717405]
[1753355018699,0.5296293,118540.0,118530.0,0.91717405]
[1753355018997,0.361,118540.0,118530.0,0.91717405]
[1753355019193,0.361,118540.0,118530.0,1.1992824]
[1753355019901,0.361,118540.0,118530.0,0.91717405]
[1753355020200,0.361,118540.0,118530.0,1.1992824]
[1753355021001,0.5296292,118540.0,118530.0,1.1992824]
[1753355021204,0.361,118540.0,118530.0,1.1992824]
[1753355021699,0.5296292,118540.0,118530.0,1.1992824]
[1753355023701,0.361,118540.0,118530.0,1.1992824]
[1753355026105,0.361,118540.0,118530.0,1.15399165]
[1753355032508,0.361,118540.0,118530.0,0.8718833]
[1753355032706,0.5296293,118540.0,118530.0,1.15399165]
[1753355033209,0.5296293,118540.0,118530.0,0.8718833]
[1753355033398,1.17253765,118540.0,118530.0,0.5110833]
[1753355033597,1.17253765,118540.0,118530.0,0.4506063]
[1753355033801,1.17253765,118540.0,118530.0,0.3446563]
[1753355034005,1.17253765,118540.0,118530.0,0.2140263]
[1753355034498,1.17253765,118540.0,118530.0,0.2992733]
[1753355035000,1.17253765,118540.0,118530.0,0.3728633]
[1753355037213,0.8904293,118540.0,118530.0,0.3728633]
[1753355037407,1.17253765,118540.0,118530.0,0.3728633]
[1753355037609,0.1686436,118530.0,118520.0,0.43957575]
[1753355037813,1.36775195,118530.0,118520.0,0.43957575]
[1753355038108,1.36775195,118530.0,118520.0,0.51976575]
[1753355038307,1.36775195,118530.0,118520.0,0.57454575]
[1753355038708,1.72855195,118530.0,118520.0,0.57454575]
[1753355038909,1.72855195,118530.0,118520.0,0.46990575]
[1753355039410,1.72855195,118530.0,118520.0,0.15124495]
[1753355039614,1.72855195,118530.0,118520.0,0.3026578]
[1753355040016,1.72855195,118530.0,118520.0,0.3769478]
[1753355040515,1.72855195,118530.0,118520.0,0.40719171]
[1753355041510,1.72855195,118530.0,118520.0,0.3769478]
[1753355041703,1.72955195,118530.0,118520.0,0.134]
[1753355041914,0.1686578,118520.0,118510.0,0.37829031]
[1753355042107,1.13156615,118520.0,118510.0,0.03024391]
[1753355042308,1.30031815,118520.0,118510.0,0.03024391]
[1753355042513,0.8494578,118520.0,118510.0,0.32144591]
[1753355042719,0.8494578,118520.0,118510.0,0.40720591]
[1753355043018,0.4886578,118520.0,118510.0,0.68931426]
[1753355043215,0.4886578,118520.0,118510.0,0.82428426]
[1753355043617,1.0942178,118520.0,118510.0,0.54217591]
[1753355043812,0.92548,118520.0,118510.0,0.54217591]
[1753355044523,0.92648,118520.0,118510.0,0.82428426]
[1753355044718,0.92648,118520.0,118510.0,1.18508426]
[1753355045218,0.92648,118520.0,118510.0,0.90297591]
[1753355045219,0.92548,118520.0,118510.0,0.90297591]
[1753355045418,0.92548,118520.0,118510.0,1.18508426]
[1753355045608,0.92548,118520.0,118510.0,0.54217591]
[1753355047220,0.92548,118520.0,118510.0,0.82428426]
[1753355047418,0.32,118520.0,118510.0,1.18508426]
[1753355047615,0.92556,118520.0,118510.0,1.18508426]
[1753355047920,0.92556,118520.0,118510.0,1.23046726]
[1753355048121,0.92556,118520.0,118510.0,1.18508426]
[1753355050622,0.92556,118520.0,118510.0,0.90297591]
[1753355050818,0.92556,118520.0,118510.0,1.23046726]
[1753355051022,0.92556,118520.0,118510.0,0.94935891]
[1753355051322,0.92556,118520.0,118510.0,1.20122335]
[1753355051919,0.92448,118520.0,118510.0,1.20122335]
[1753355052116,0.32,118520.0,118510.0,1.80562335]
[1753355052612,0.32,118520.0,118510.0,1.80550845]
[1753355052812,0.32,118520.0,118510.0,1.76024035]
[1753355054124,0.32,118520.0,118510.0,1.15584035]
[1753355054324,0.32,118520.0,118510.0,1.20111245]
[1753355054512,0.32,118520.0,118510.0,1.20111739]
[1753355055924,0.32,118520.0,118510.0,1.15584035]
[1753355057526,0.32,118520.0,118510.0,0.873732]
[1753355057722,0.32,118520.0,118510.0,1.15584035]
[1753355060232,0.32,118520.0,118510.0,1.21627422]
[1753355061032,0.32,118520.0,118510.0,1.15584035]
[1753355061434,0.32,118520.0,118510.0,1.21627422]
[1753355065830,0.92084725,118550.0,118540.0,0.1686292]
[1753355066030,1.89600725,118550.0,118540.0,0.33284252]
[1753355066230,2.19162599,118550.0,118540.0,0.33284252]
[1753355066733,2.19162599,118550.0,118540.0,0.40413252]
[1753355066933,2.19162599,118550.0,118540.0,0.23550332]
[1753355067140,2.19262599,118550.0,118540.0,0.40413252]
[1753355067636,2.19262599,118550.0,118540.0,0.23550332]
[1753355068226,2.19262599,118550.0,118540.0,0.16421332]
[1753355069941,1.58746599,118550.0,118540.0,0.16421332]
[1753355070141,2.19214599,118550.0,118540.0,0.16421332]
[1753355072535,2.19214599,118550.0,118530.0,0.23370332]
[1753355072536,0.1686294,118540.0,118530.0,0.23370332]
[1753355072740,1.17153775,118540.0,118530.0,0.40234562]
[1753355072946,1.17153775,118540.0,118530.0,0.23370332]
[1753355073139,0.8894294,118540.0,118530.0,0.16241332]
[1753355073335,1.17153775,118540.0,118530.0,0.03021332]
[1753355073835,1.17253775,118540.0,118530.0,0.16241332]
[1753355074636,1.17253775,118540.0,118530.0,0.1322]
[1753355075635,1.00390835,118540.0,118520.0,0.14693332]
[1753355075840,1.41511195,118530.0,118520.0,0.16241332]
[1753355076041,1.76511195,118530.0,118520.0,0.16241332]
[1753355077547,1.76511195,118530.0,118520.0,0.1322]
[1753355077941,1.76611195,118530.0,118520.0,0.1322]
[1753355078546,1.76611195,118530.0,118520.0,0.3008578]
[1753355078547,1.4840036,118530.0,118520.0,0.3008578]
[1753355078751,1.76611195,118530.0,118520.0,0.3008578]
[1753355079949,1.76611195,118530.0,118520.0,0.1322]
[1753355080951,1.76611195,118530.0,118510.0,0.16241332]
[1753355080952,0.1686578,118520.0,118510.0,0.16241332]
[1753355081159,1.15156615,118520.0,118510.0,0.16241332]
[1753355081361,1.15156615,118520.0,118510.0,0.03021332]
[1753355081559,0.168672,118510.0,118500.0,0.23370332]
[1753355081860,1.78410035,118510.0,118500.0,0.40238952]
[1753355082059,1.78410035,118510.0,118500.0,0.23370332]
[1753355082257,1.91026518,118510.0,118500.0,0.16241332]
[1753355082457,1.91026518,118510.0,118500.0,0.16244761]
[1753355083056,1.91026518,118510.0,118500.0,0.23373761]
[1753355083556,1.91026518,118510.0,118500.0,0.23473761]
[1753355084061,1.91026518,118510.0,118500.0,0.23373761]
[1753355085164,1.91821135,118510.0,118500.0,0.23373761]
[1753355085362,1.91821135,118510.0,118500.0,0.16244761]
[1753355085664,1.91821135,118510.0,118500.0,0.11701761]
[1753355086062,1.91821135,118510.0,118500.0,0.16244761]
[1753355086469,1.636103,118510.0,118500.0,0.16244761]
[1753355086764,1.91821135,118510.0,118500.0,0.16244761]
[1753355089170,1.91821135,118510.0,118500.0,0.1322]
[1753355091864,1.91821135,118510.0,118500.0,0.20349]
[1753355092563,1.91821135,118510.0,118500.0,0.1322]
[1753355092771,0.1686863,118500.0,118490.0,0.29623852]
[1753355092964,1.18159465,118500.0,118490.0,0.29623852]
[1753355093161,1.18159465,118500.0,118490.0,0.25091853]
[1753355093566,1.24891694,118500.0,118490.0,0.41961903]
[1753355093769,1.24891694,118500.0,118490.0,0.25091853]
[1753355095673,1.24891694,118500.0,118490.0,0.25191853]
[1753355096475,1.24891694,118500.0,118490.0,0.18062853]
[1753355097075,1.54384591,118500.0,118490.0,0.001]
[1753355097469,0.1687005,118490.0,118480.0,1e-08]
[1753355097669,0.1687147,118480.0,118470.0,1e-08]
[1753355097869,2.0328114,118480.0,118470.0,1e-08]
[1753355098074,2.32796797,118480.0,118470.0,1e-08]
[1753355100176,2.32996797,118480.0,118470.0,1e-08]
[1753355100375,1.73088797,118480.0,118470.0,1e-08]
[1753355100581,2.04785962,118480.0,118470.0,0.13242001]
[1753355101469,2.32996797,118480.0,118470.0,1e-08]
[1753355101874,0.1687289,118470.0,118460.0,0.04531999]
[1753355102170,1.13163725,118470.0,118460.0,0.04531999]
[1753355102371,1.42708829,118470.0,118460.0,0.04531999]
[1753355102672,2.59432829,118470.0,118460.0,0.04531999]
[1753355103575,0.1687432,118460.0,118450.0,0.17773999]
[1753355103777,1.73117155,118460.0,118450.0,0.17773999]
[1753355104374,1.73117155,118460.0,118450.0,0.24767999]
[1753355105178,1.73317155,118460.0,118450.0,0.24767999]
[1753355106273,1.73317155,118460.0,118450.0,0.20236]
[1753355106972,1.74131456,118460.0,118450.0,0.20236]
[1753355112975,1.74131456,118460.0,118450.0,0.13242]
[1753355113182,0.1687574,118450.0,118440.0,0.21088]
[1753355113381,0.8795574,118450.0,118440.0,0.21088]
[1753355113683,1.16166575,118450.0,118440.0,0.21088]
[1753355113981,1.16166575,118450.0,118440.0,0.14094]
[1753355114279,0.8795574,118450.0,118440.0,0.14094]
[1753355114482,1.16166575,118450.0,118440.0,0.21088]
[1753355114677,1.16266575,118450.0,118440.0,0.21088]
[1753355114981,1.16266575,118450.0,118440.0,0.29018]
[1753355115574,1.8636301,118450.0,118440.0,1e-07]
[1753355115774,1.8636301,118450.0,118430.0,0.0001]
[1753355115775,0.1687717,118440.0,118430.0,0.0001]
[1753355115980,1.6126604,118440.0,118430.0,0.0001]
[1753355116180,0.1687859,118430.0,118420.0,0.08686]
[1753355116378,1.75941425,118430.0,118420.0,0.08686]
[1753355116577,1.88574736,118430.0,118420.0,0.08686]
[1753355116779,1.88574736,118430.0,118420.0,0.13242]
[1753355117391,1.60363901,118430.0,118420.0,0.13242]
[1753355117572,1.88574736,118430.0,118420.0,0.13242]
[1753355118281,1.88874736,118430.0,118420.0,0.13242]
[1753355118981,1.24619901,118430.0,118420.0,0.62217835]
[1753355119181,1.1198659,118430.0,118420.0,0.79097855]
[1753355119382,0.353,118430.0,118420.0,0.8696702]
[1753355119581,0.353,118430.0,118420.0,1.15177855]
[1753355119582,0.95124,118430.0,118420.0,1.15177855]
[1753355120280,1.120026,118430.0,118420.0,1.15177855]
[1753355120583,1.119026,118430.0,118420.0,1.15177855]
[1753355121184,1.117026,118430.0,118420.0,1.15177855]
[1753355121386,0.94824,118430.0,118420.0,1.15177855]
[1753355121980,1.1170259,118430.0,118420.0,1.15177855]
[1753355123177,0.94824,118430.0,118420.0,1.15177855]
[1753355123376,1.1170259,118430.0,118420.0,1.15177855]
[1753355123875,1.18602265,118430.0,118420.0,1.15177855]
[1753355126887,1.18602265,118430.0,118420.0,0.70087]
[1753355127086,1.18602265,118430.0,118420.0,0.8696702]
[1753355130784,1.18602265,118430.0,118420.0,0.70087]
[1753355131186,1.18602265,118430.0,118420.0,0.8696702]
[1753355131987,1.18602265,118430.0,118420.0,0.70087]
[1753355132286,1.828931,118430.0,118420.0,0.34007]
[1753355132484,1.828931,118430.0,118420.0,0.41559176]
[1753355132485,1.468131,118430.0,118420.0,0.41559176]
[1753355132680,1.468131,118430.0,118420.0,0.53907197]
[1753355132879,1.18602265,118430.0,118420.0,0.53907197]
[1753355133480,1.18602265,118430.0,118420.0,0.58439196]
[1753355134880,1.18602265,118430.0,118420.0,0.86650031]
[1753355135486,1.18602265,118430.0,118420.0,0.83629854]
[1753355136488,0.35,118430.0,118420.0,1.19709854]
[1753355136685,0.253153,118450.0,118440.0,0.2982917]
[1753355136990,0.253153,118450.0,118440.0,0.81187342]
[1753355136991,1.201793,118450.0,118440.0,0.81187342]
[1753355137282,1.201793,118450.0,118440.0,0.52976507]
[1753355137490,1.27008997,118450.0,118440.0,0.52976507]
[1753355139283,1.22789737,118450.0,118440.0,0.52976507]
[1753355139589,1.22789737,118450.0,118440.0,0.54489676]
[1753355142293,1.18570617,118450.0,118440.0,0.54489676]
[1753355142692,1.18570617,118450.0,118440.0,0.90569676]
[1753355143584,1.18570617,118450.0,118440.0,0.54489676]
[1753355144089,1.18570617,118450.0,118440.0,0.90569676]
[1753355144290,1.18570617,118450.0,118440.0,0.54489676]
[1753355145384,1.18570617,118450.0,118440.0,0.90569676]
[1753355146386,1.18570617,118450.0,118440.0,0.54489676]
[1753355146586,1.82861452,118450.0,118440.0,0.20121]
[1753355146893,1.82861452,118450.0,118440.0,0.40023074]
[1753355147092,1.82861452,118450.0,118440.0,0.52975074]
[1753355147293,1.54650617,118450.0,118440.0,0.52975074]
[1753355147488,1.82861452,118450.0,118440.0,0.52975074]
[1753355147793,1.46781452,118450.0,118440.0,0.52975074]
[1753355149795,1.82861452,118450.0,118440.0,0.52975074]
[1753355150490,1.82861452,118450.0,118440.0,0.36097904]
[1753355151691,1.82861452,118450.0,118440.0,0.16058904]
[1753355151893,1.82861452,118450.0,118440.0,0.11096904]
[1753355152498,1.82861452,118450.0,118440.0,0.13034]
[1753355153290,1.54650617,118450.0,118440.0,0.13034]
[1753355153496,1.82861452,118450.0,118440.0,0.13034]
[1753355154297,1.82861452,118450.0,118440.0,0.20121]
[1753355154797,1.82861452,118450.0,118440.0,0.4464517]
[1753355154997,1.82861452,118450.0,118440.0,0.4995017]
[1753355156200,1.18570617,118450.0,118440.0,0.78161005]
[1753355156393,0.41829697,118450.0,118440.0,1.17265909]
[1753355156597,1.01733697,118450.0,118440.0,1.21805415]
[1753355156795,1.01733697,118450.0,118440.0,1.18780511]
[1753355156997,1.01733697,118450.0,118440.0,1.19582147]
[1753355157691,1.18609447,118450.0,118440.0,1.18780511]
[1753355157896,1.18609447,118450.0,118440.0,0.90569676]
[1753355158401,1.01733697,118450.0,118440.0,1.18780511]
[1753355158601,1.18609447,118450.0,118440.0,1.18780511]
[1753355158804,1.1177975,118450.0,118440.0,1.18780511]
[1753355159300,0.94904,118450.0,118440.0,1.18780511]
[1753355159801,0.35,118450.0,118440.0,1.18880511]
[1753355159995,1.16724,118470.0,118460.0,0.4994132]
[1753355160195,2.12684,118470.0,118460.0,1.17257064]
[1753355160400,1.128329,118470.0,118460.0,1.17257064]
[1753355160600,1.128329,118470.0,118460.0,1.21794427]
[1753355161396,1.128329,118470.0,118460.0,1.17257064]
[1753355162496,1.128329,118470.0,118460.0,1.18769518]
[1753355163203,1.128329,118470.0,118460.0,0.90558683]
[1753355163404,1.128329,118470.0,118460.0,0.90658683]
[1753355165203,1.128329,118470.0,118460.0,0.9368029]
[1753355165403,1.128329,118470.0,118460.0,0.90658683]
[1753355166199,1.128329,118470.0,118460.0,0.9368008]
[1753355166400,1.128329,118470.0,118460.0,0.90658683]
[1753355167294,1.128329,118470.0,118460.0,0.93680147]
[1753355172315,1.128329,118470.0,118460.0,0.57600147]
[1753355173916,1.128329,118470.0,118460.0,0.93680147]
[1753355175012,1.128329,118470.0,118460.0,0.57600147]
[1753355175624,1.128329,118470.0,118460.0,0.93680147]
[1753355175912,0.36,118470.0,118460.0,0.93680147]
[1753355176113,0.359,118470.0,118460.0,1.51869518]
[1753355176321,0.359,118470.0,118460.0,1.18869518]
[1753355176617,0.60676,118480.0,118470.0,0.499399]
[1753355176816,0.60676,118480.0,118470.0,1.17249172]
[1753355176817,0.94676,118480.0,118470.0,1.17249172]
[1753355177620,0.94676,118480.0,118470.0,1.14230735]
[1753355178009,0.94676,118480.0,118470.0,1.18768098]
[1753355178215,0.94676,118480.0,118470.0,1.14230735]
[1753355178415,0.94676,118480.0,118470.0,1.18768098]
[1753355179018,0.63676,118480.0,118470.0,1.35748898]
[1753355179322,1.16764,118510.0,118500.0,0.4993563]
[1753355179517,2.1236,118510.0,118500.0,0.4993563]
[1753355180027,1.51764,118510.0,118500.0,0.8601563]
[1753355180220,2.12392,118510.0,118500.0,0.8601563]
[1753355180526,1.51764,118510.0,118500.0,1.14226465]
[1753355180724,2.12376,118510.0,118500.0,1.14226465]
[1753355180910,1.02232285,118510.0,118500.0,1.14226465]
[1753355181418,1.02432285,118510.0,118500.0,1.14226465]
[1753355181613,0.95812,118510.0,118500.0,1.14226465]
[1753355183025,0.9899,118510.0,118500.0,1.14226465]
[1753355183422,0.9899,118510.0,118500.0,0.8601563]
[1753355184624,1.1585721,118510.0,118500.0,0.8601563]
[1753355186924,1.1585721,118510.0,118500.0,0.89032451]
[1753355188127,1.1885721,118510.0,118500.0,0.89032451]
[1753355188327,1.1885721,118510.0,118500.0,0.8601563]
[1753355188526,1.1885721,118510.0,118500.0,0.89032451]
[1753355188728,1.47068045,118510.0,118500.0,0.52952451]
[1753355188928,1.47068045,118510.0,118500.0,0.4993563]
[1753355190430,1.47068045,118510.0,118500.0,0.8601563]
[1753355190831,1.47068045,118510.0,118500.0,0.4993563]
[1753355191330,1.47068045,118510.0,118500.0,0.8601563]
[1753355191531,1.47068045,118510.0,118500.0,0.57489814]
[1753355192132,1.47068045,118510.0,118500.0,0.93569814]
[1753355192527,1.47068045,118510.0,118500.0,0.90552993]
[1753355193334,1.47068045,118510.0,118500.0,0.93567694]
[1753355194232,0.9899,118510.0,118500.0,0.93567694]
[1753355195532,0.9899,118510.0,118500.0,1.21778529]
[1753355196433,0.95812,118510.0,118500.0,1.21778529]
[1753355199122,0.98955,118510.0,118500.0,1.14226465]
[1753355199329,1.1582221,118510.0,118500.0,1.14226465]
[1753355199732,0.352,118510.0,118500.0,0.92878587]